[Event "Late-Titled-Tuesday-Blitz-January-23-2024"]
[Site "Chess.com"]
[Date "2024.01.23"]
[Round "3"]
[White "MightyGMpretender"]
[Black "Ajedrecista3000"]
[Result "1-0"]
[WhiteElo "2757"]
[BlackElo "2573"]
[TimeControl "180+1"]
[EndTime "14:29:58 PST"]
[Termination "MightyGMpretender won on time"]

1. Nf3 {[%clk 0:03:00.9]} 1... Nf6 {[%clk 0:02:59.7]} 2. d4 {[%clk 0:03:01.3]}
2... e6 {[%clk 0:02:59.7]} 3. Bf4 {[%clk 0:02:58.9]} 3... b6 {[%clk 0:02:56.4]}
4. e3 {[%clk 0:02:59.2]} 4... Bd6 {[%clk 0:02:53.6]} 5. Bxd6 {[%clk 0:02:58.4]}
5... cxd6 {[%clk 0:02:54.5]} 6. c4 {[%clk 0:02:57.7]} 6... Bb7 {[%clk
0:02:54.9]} 7. Nc3 {[%clk 0:02:58.3]} 7... d5 {[%clk 0:02:55.3]} 8. cxd5 {[%clk
0:02:54.8]} 8... Nxd5 {[%clk 0:02:56.2]} 9. Nxd5 {[%clk 0:02:55.3]} 9... Bxd5
{[%clk 0:02:56.2]} 10. Bd3 {[%clk 0:02:56.1]} 10... O-O {[%clk 0:02:54.7]} 11.
O-O {[%clk 0:02:56]} 11... Bb7 {[%clk 0:02:52.6]} 12. e4 {[%clk 0:02:55.4]}
12... Nc6 {[%clk 0:02:40.4]} 13. Qd2 {[%clk 0:02:48.4]} 13... Rc8 {[%clk
0:02:30.6]} 14. Rac1 {[%clk 0:02:44.9]} 14... Ne7 {[%clk 0:02:28.5]} 15. Qb4
{[%clk 0:02:33.3]} 15... Nc6 {[%clk 0:02:20.1]} 16. Qd6 {[%clk 0:02:28.3]} 16...
Re8 {[%clk 0:02:09.9]} 17. d5 {[%clk 0:02:13.1]} 17... exd5 {[%clk 0:02:01.9]}
18. exd5 {[%clk 0:02:13.3]} 18... Qe7 {[%clk 0:01:59.6]} 19. Qf4 {[%clk
0:02:06.9]} 19... Nb4 {[%clk 0:01:35.2]} 20. Rxc8 {[%clk 0:01:41.8]} 20... Rxc8
{[%clk 0:01:19.7]} 21. Bxh7+ {[%clk 0:01:20.7]} 21... Kxh7 {[%clk 0:01:13.8]}
22. d6 {[%clk 0:01:21.3]} 22... Qf6 {[%clk 0:00:54.8]} 23. Qxb4 {[%clk
0:01:05.6]} 23... Bxf3 {[%clk 0:00:50.8]} 24. gxf3 {[%clk 0:01:06.1]} 24... Qxf3
{[%clk 0:00:46.2]} 25. Re1 {[%clk 0:01:03.5]} 25... Rc5 {[%clk 0:00:34.9]} 26.
Qe4+ {[%clk 0:00:49]} 26... Qxe4 {[%clk 0:00:34.7]} 27. Rxe4 {[%clk 0:00:49.9]}
27... Rd5 {[%clk 0:00:35.4]} 28. Re7 {[%clk 0:00:48.6]} 28... Rxd6 {[%clk
0:00:35.6]} 29. Rxf7 {[%clk 0:00:49.1]} 29... Rd2 {[%clk 0:00:35.3]} 30. b4
{[%clk 0:00:47.3]} 30... Kg6 {[%clk 0:00:33.7]} 31. Rf8 {[%clk 0:00:45.5]} 31...
Rxa2 {[%clk 0:00:32.8]} 32. Rd8 {[%clk 0:00:45.8]} 32... Rd2 {[%clk 0:00:22.5]}
33. Ra8 {[%clk 0:00:45.4]} 33... Ra2 {[%clk 0:00:22.4]} 34. Rd8 {[%clk
0:00:45.5]} 34... Rd2 {[%clk 0:00:11.9]} 35. Ra8 {[%clk 0:00:44.5]} 35... Rd4
{[%clk 0:00:07.9]} 36. b5 {[%clk 0:00:41.4]} 36... Ra4 {[%clk 0:00:06.9]} 37.
Rd8 {[%clk 0:00:41.3]} 37... Rd4 {[%clk 0:00:06.9]} 38. Ra8 {[%clk 0:00:41.5]}
38... Rd5 {[%clk 0:00:05.8]} 39. Rxa7 {[%clk 0:00:41.6]} 39... Kf6 {[%clk
0:00:06.2]} 40. Rb7 {[%clk 0:00:37]} 40... Rd6 {[%clk 0:00:06.6]} 41. Kg2 {[%clk
0:00:29.5]} 41... Ke5 {[%clk 0:00:07.1]} 42. Kf3 {[%clk 0:00:29.9]} 42... Kd5
{[%clk 0:00:07.6]} 43. Rc7 {[%clk 0:00:30.6]} 43... Ke6 {[%clk 0:00:04.1]} 44.
Rb7 {[%clk 0:00:28.7]} 44... Kd5 {[%clk 0:00:04.7]} 45. Rc7 {[%clk 0:00:28.6]}
45... Ke6 {[%clk 0:00:05]} 46. Rc4 {[%clk 0:00:20.4]} 46... Rd5 {[%clk 0:00:05]}
47. Rb4 {[%clk 0:00:21.1]} 47... Rh5 {[%clk 0:00:04.9]} 48. h4 {[%clk
0:00:21.1]} 48... Kd5 {[%clk 0:00:04.7]} 49. Rg4 {[%clk 0:00:19.9]} 49... Rf5+
{[%clk 0:00:03.2]} 50. Ke3 {[%clk 0:00:18.7]} 50... Rf7 {[%clk 0:00:03.6]} 51.
Kd3 {[%clk 0:00:16.3]} 51... Kc5 {[%clk 0:00:03.5]} 52. Rg5+ {[%clk 0:00:16.5]}
52... d5 {[%clk 0:00:04]} 53. f4 {[%clk 0:00:15.3]} 53... Rd7 {[%clk 0:00:04.2]}
54. h5 {[%clk 0:00:15.1]} 54... Kxb5 {[%clk 0:00:04]} 55. Kd4 {[%clk 0:00:15.9]}
55... Kc6 {[%clk 0:00:03.3]} 56. Rg6+ {[%clk 0:00:16.5]} 56... Kc7 {[%clk
0:00:03.1]} 57. f5 {[%clk 0:00:15.4]} 57... Rf7 {[%clk 0:00:03.5]} 58. Ke5
{[%clk 0:00:15]} 58... Re7+ {[%clk 0:00:03.5]} 59. Kxd5 {[%clk 0:00:15.3]} 59...
Rf7 {[%clk 0:00:02.1]} 60. Ke6 {[%clk 0:00:15.6]} 60... Rd7 {[%clk 0:00:02.3]}
61. Rg1 {[%clk 0:00:12.1]} 61... Rd6+ {[%clk 0:00:01.5]} 62. Kf7 {[%clk
0:00:09.6]} 62... Rd5 {[%clk 0:00:01.9]} 63. Kg6 {[%clk 0:00:09.5]} 63... b5
{[%clk 0:00:02.3]} 64. Rf1 {[%clk 0:00:08.9]} 64... b4 {[%clk 0:00:02.3]} 65.
Kxg7 {[%clk 0:00:09.3]} 65... b3 {[%clk 0:00:03]} 66. h6 {[%clk 0:00:08.7]}
66... Rd7+ {[%clk 0:00:01.2]} 67. Kg6 {[%clk 0:00:08.9]} 67... Rd6+ {[%clk
0:00:01.9]} 68. f6 {[%clk 0:00:09.4]} 68... Rd2 {[%clk 0:00:02]} 69. h7 {[%clk
0:00:08.7]} 69... Rg2+ {[%clk 0:00:02.9]} 70. Kf7 {[%clk 0:00:08.8]} 70... Rh2
{[%clk 0:00:03.6]} 71. Kg7 {[%clk 0:00:07.6]} 71... Rg2+ {[%clk 0:00:04.1]} 72.
Kf8 {[%clk 0:00:08.1]} 72... Rh2 {[%clk 0:00:04.1]} 73. Rb1 {[%clk 0:00:08.8]}
73... Rxh7 {[%clk 0:00:03.9]} 74. Rxb3 {[%clk 0:00:09.1]} 74... Kd7 {[%clk
0:00:04.5]} 75. f7 {[%clk 0:00:07.9]} 75... Ke6 {[%clk 0:00:04.3]} 76. Re3+
{[%clk 0:00:08.4]} 76... Kf6 {[%clk 0:00:04.5]} 77. Ke8 {[%clk 0:00:08.9]} 77...
Kg7 {[%clk 0:00:02.1]} 78. f8=Q+ {[%clk 0:00:08.9]} 1-0

[Event "Late-Titled-Tuesday-Blitz-January-23-2024"]
[Site "Chess.com"]
[Date "2024.01.23"]
[Round "3"]
[White "XeresLt"]
[Black "Kamilek84"]
[Result "0-1"]
[WhiteElo "2477"]
[BlackElo "2692"]
[TimeControl "180+1"]
[EndTime "14:30:09 PST"]
[Termination "Kamilek84 won by resignation"]

1. e4 {[%clk 0:03:00.9]} 1... c5 {[%clk 0:02:58.5]} 2. Nf3 {[%clk 0:03:00.9]}
2... Nc6 {[%clk 0:02:58.1]} 3. d4 {[%clk 0:03:00.5]} 3... cxd4 {[%clk
0:02:58.4]} 4. Nxd4 {[%clk 0:03:01.4]} 4... e5 {[%clk 0:02:58.6]} 5. Nb5 {[%clk
0:03:01.8]} 5... d6 {[%clk 0:02:58.5]} 6. N1c3 {[%clk 0:03:01.9]} 6... a6 {[%clk
0:02:57.6]} 7. Na3 {[%clk 0:03:02.1]} 7... b5 {[%clk 0:02:58]} 8. Nd5 {[%clk
0:03:01.9]} 8... Nce7 {[%clk 0:02:56.8]} 9. c3 {[%clk 0:02:57.9]} 9... Nxd5
{[%clk 0:02:56.1]} 10. Qxd5 {[%clk 0:02:56]} 10... Be6 {[%clk 0:02:56]} 11. Qd1
{[%clk 0:02:41.5]} 11... Nf6 {[%clk 0:02:55.2]} 12. Bg5 {[%clk 0:02:39.1]} 12...
Be7 {[%clk 0:02:32]} 13. Bxf6 {[%clk 0:02:38.4]} 13... Bxf6 {[%clk 0:02:31.8]}
14. Be2 {[%clk 0:02:35.7]} 14... d5 {[%clk 0:02:29.9]} 15. exd5 {[%clk
0:02:35.5]} 15... Qxd5 {[%clk 0:02:26.3]} 16. O-O {[%clk 0:02:30.3]} 16... O-O
{[%clk 0:02:22.9]} 17. Bf3 {[%clk 0:02:30.4]} 17... e4 {[%clk 0:02:18.9]} 18.
Qxd5 {[%clk 0:02:28.6]} 18... Bxd5 {[%clk 0:02:18.5]} 19. Be2 {[%clk 0:02:28.1]}
19... b4 {[%clk 0:02:06.2]} 20. Nb1 {[%clk 0:02:15.2]} 20... a5 {[%clk
0:02:02.9]} 21. a3 {[%clk 0:02:11.4]} 21... b3 {[%clk 0:01:48.5]} 22. Nd2 {[%clk
0:02:08.8]} 22... Rfc8 {[%clk 0:01:45.8]} 23. Rfd1 {[%clk 0:02:05.9]} 23... a4
{[%clk 0:01:43.1]} 24. Nf1 {[%clk 0:02:03]} 24... Be6 {[%clk 0:01:41.4]} 25. Ne3
{[%clk 0:02:02.9]} 25... g6 {[%clk 0:01:36.8]} 26. Bb5 {[%clk 0:02:01.5]} 26...
Rc5 {[%clk 0:01:28.8]} 27. Bd7 {[%clk 0:01:48.5]} 27... Ra6 {[%clk 0:01:18.3]}
28. Bxe6 {[%clk 0:01:42.8]} 28... Rxe6 {[%clk 0:01:18.1]} 29. Kf1 {[%clk
0:01:42.6]} 29... Be5 {[%clk 0:01:02.1]} 30. g3 {[%clk 0:01:40]} 30... f5 {[%clk
0:01:01.2]} 31. Rd5 {[%clk 0:01:33.3]} 31... Rxd5 {[%clk 0:00:58.2]} 32. Nxd5
{[%clk 0:01:33.7]} 32... Rd6 {[%clk 0:00:57]} 33. Rd1 {[%clk 0:01:33.5]} 33...
Kf7 {[%clk 0:00:56.5]} 34. Ke2 {[%clk 0:01:33.2]} 34... g5 {[%clk 0:00:50.9]}
35. Ne3 {[%clk 0:01:31.2]} 35... Rxd1 {[%clk 0:00:47.5]} 36. Kxd1 {[%clk
0:01:27.9]} 36... Ke6 {[%clk 0:00:47.9]} 37. Nc4 {[%clk 0:01:22.1]} 37... Bc7
{[%clk 0:00:47.3]} 38. Ke2 {[%clk 0:01:17.1]} 38... f4 {[%clk 0:00:45.8]} 39.
gxf4 {[%clk 0:01:17]} 39... gxf4 {[%clk 0:00:46.1]} 40. h3 {[%clk 0:01:12.9]}
40... f3+ {[%clk 0:00:42.7]} 41. Ke3 {[%clk 0:01:10.4]} 41... Kd5 {[%clk
0:00:42.7]} 42. Nd2 {[%clk 0:01:07]} 42... Bb6+ {[%clk 0:00:40.2]} 43. Kf4
{[%clk 0:01:07.5]} 43... Bc7+ {[%clk 0:00:27.9]} 44. Kf5 {[%clk 0:00:59.2]}
44... e3 {[%clk 0:00:22.5]} 45. fxe3 {[%clk 0:00:59.7]} 45... f2 {[%clk
0:00:21.9]} 46. e4+ {[%clk 0:00:58.9]} 46... Kc6 {[%clk 0:00:19.8]} 47. e5
{[%clk 0:00:58.4]} 47... Kd5 {[%clk 0:00:15.9]} 48. e6 {[%clk 0:00:48.4]} 48...
Bd6 {[%clk 0:00:16.1]} 49. Kf6 {[%clk 0:00:46.9]} 49... Bxa3 {[%clk 0:00:08.2]}
50. bxa3 {[%clk 0:00:45.3]} 50... b2 {[%clk 0:00:08.6]} 51. e7 {[%clk
0:00:44.3]} 51... b1=Q {[%clk 0:00:09.1]} 52. e8=Q {[%clk 0:00:42.6]} 52... Qb6+
{[%clk 0:00:08.6]} 53. Kg7 {[%clk 0:00:36.6]} 53... Qc7+ {[%clk 0:00:06.4]} 54.
Kh8 {[%clk 0:00:23.1]} 54... Qxc3+ {[%clk 0:00:05.1]} 55. Kxh7 {[%clk
0:00:17.5]} 55... Qd3+ {[%clk 0:00:03]} 56. Qg6 {[%clk 0:00:14.9]} 56... Qxd2
{[%clk 0:00:02.1]} 57. Qf5+ {[%clk 0:00:15.2]} 57... Kc4 {[%clk 0:00:02]} 58.
Qe6+ {[%clk 0:00:11.6]} 58... Kc3 {[%clk 0:00:02.1]} 59. Qe5+ {[%clk 0:00:09.4]}
59... Kc2 {[%clk 0:00:02.3]} 60. Qc5+ {[%clk 0:00:08.5]} 60... Kd1 {[%clk
0:00:01.5]} 61. Qh5+ {[%clk 0:00:08.4]} 61... Qe2 {[%clk 0:00:01.6]} 62. Qd5+
{[%clk 0:00:08.4]} 62... Ke1 {[%clk 0:00:02]} 63. Qa5+ {[%clk 0:00:07.6]} 63...
Qd2 {[%clk 0:00:02.2]} 64. Qe5+ {[%clk 0:00:06.1]} 64... Qe2 {[%clk 0:00:02.5]}
65. Qa5+ {[%clk 0:00:05.8]} 65... Kf1 {[%clk 0:00:02.8]} 66. Qxa4 {[%clk
0:00:03.8]} 66... Kg1 {[%clk 0:00:02.6]} 67. Qd4 {[%clk 0:00:01.5]} 67... Kh1
{[%clk 0:00:01.9]} 68. Qd5+ {[%clk 0:00:01.6]} 68... Kh2 {[%clk 0:00:02.1]} 69.
Qd6+ {[%clk 0:00:01.6]} 69... Kg1 {[%clk 0:00:02.5]} 70. Qd4 {[%clk 0:00:01.9]}
70... Qe1 {[%clk 0:00:02]} 71. Qg4+ {[%clk 0:00:01.6]} 71... Kf1 {[%clk
0:00:01.8]} 72. Qc4+ {[%clk 0:00:01.8]} 72... Qe2 {[%clk 0:00:02.5]} 73. Qf4
{[%clk 0:00:01.9]} 73... Ke1 {[%clk 0:00:02.4]} 74. Qb4+ {[%clk 0:00:01.6]}
74... Qd2 {[%clk 0:00:01.9]} 75. Qf4 {[%clk 0:00:02.1]} 75... Qxf4 {[%clk
0:00:01.5]} 76. h4 {[%clk 0:00:02.7]} 76... Qg3 {[%clk 0:00:02.2]} 77. h5 {[%clk
0:00:02.9]} 77... Qh4 {[%clk 0:00:02.8]} 78. h6 {[%clk 0:00:03.8]} 78... f1=Q
{[%clk 0:00:03]} 79. Kg7 {[%clk 0:00:04.4]} 79... Qff6+ {[%clk 0:00:03.6]} 0-1

[Event "Late-Titled-Tuesday-Blitz-January-23-2024"]
[Site "Chess.com"]
[Date "2024.01.23"]
[Round "3"]
[White "DavidGavrilescu18"]
[Black "Oleksandr_Bortnyk"]
[Result "1/2-1/2"]
[WhiteElo "2811"]
[BlackElo "3069"]
[TimeControl "180+1"]
[EndTime "14:30:11 PST"]
[Termination "Game drawn - insufficient material"]

1. e4 {[%clk 0:03:00.9]} 1... Nf6 {[%clk 0:02:58.7]} 2. e5 {[%clk 0:03:00.7]}
2... Nd5 {[%clk 0:02:58.7]} 3. d4 {[%clk 0:03:01.1]} 3... d6 {[%clk 0:02:59.2]}
4. c4 {[%clk 0:03:00.3]} 4... Nb6 {[%clk 0:02:59.5]} 5. exd6 {[%clk 0:03:00.7]}
5... exd6 {[%clk 0:03:00.4]} 6. Bd3 {[%clk 0:02:59.7]} 6... Be7 {[%clk
0:03:01.3]} 7. Nc3 {[%clk 0:02:59.7]} 7... O-O {[%clk 0:03:00.3]} 8. h3 {[%clk
0:02:59.9]} 8... c6 {[%clk 0:02:57.8]} 9. Nf3 {[%clk 0:02:59.7]} 9... Na6 {[%clk
0:02:53.1]} 10. a3 {[%clk 0:02:56.2]} 10... d5 {[%clk 0:02:51.5]} 11. c5 {[%clk
0:02:55.8]} 11... Nd7 {[%clk 0:02:51.9]} 12. O-O {[%clk 0:02:55.6]} 12... Nc7
{[%clk 0:02:51.9]} 13. Re1 {[%clk 0:02:52.2]} 13... g6 {[%clk 0:02:47.1]} 14.
Bh6 {[%clk 0:02:47.5]} 14... Re8 {[%clk 0:02:47.1]} 15. Qd2 {[%clk 0:02:47.6]}
15... Ne6 {[%clk 0:02:47.2]} 16. b4 {[%clk 0:02:45.9]} 16... Bf6 {[%clk
0:02:47.7]} 17. Ne2 {[%clk 0:02:36.6]} 17... a5 {[%clk 0:02:26.1]} 18. b5 {[%clk
0:02:11.4]} 18... a4 {[%clk 0:02:19.6]} 19. Rab1 {[%clk 0:02:02.4]} 19... Qa5
{[%clk 0:02:15.5]} 20. Qxa5 {[%clk 0:01:40.4]} 20... Rxa5 {[%clk 0:02:16.4]} 21.
Nc3 {[%clk 0:01:35.3]} 21... Rd8 {[%clk 0:01:56.4]} 22. Bd2 {[%clk 0:01:16.2]}
22... Ra8 {[%clk 0:01:51.2]} 23. Rb4 {[%clk 0:01:15.3]} 23... Ndxc5 {[%clk
0:01:41.9]} 24. dxc5 {[%clk 0:01:12.1]} 24... Nxc5 {[%clk 0:01:42.8]} 25. Bb1
{[%clk 0:01:01.2]} 25... Bf5 {[%clk 0:01:40.2]} 26. bxc6 {[%clk 0:00:57.1]}
26... bxc6 {[%clk 0:01:38.4]} 27. Bxf5 {[%clk 0:00:55.2]} 27... gxf5 {[%clk
0:01:39.3]} 28. Rb6 {[%clk 0:00:54.1]} 28... Rac8 {[%clk 0:01:35.2]} 29. Ne2
{[%clk 0:00:51.3]} 29... Ne4 {[%clk 0:01:32.2]} 30. Bf4 {[%clk 0:00:47.6]} 30...
Be7 {[%clk 0:01:32.1]} 31. Rb7 {[%clk 0:00:41.5]} 31... Bxa3 {[%clk 0:01:32.2]}
32. Ra1 {[%clk 0:00:38.6]} 32... Bc5 {[%clk 0:01:32]} 33. Be3 {[%clk 0:00:39.1]}
33... Bxe3 {[%clk 0:01:30.6]} 34. fxe3 {[%clk 0:00:40]} 34... Nc5 {[%clk
0:01:28.4]} 35. Rb6 {[%clk 0:00:35.5]} 35... Re8 {[%clk 0:01:27.5]} 36. Ned4
{[%clk 0:00:35.7]} 36... Rxe3 {[%clk 0:01:27.4]} 37. Nxc6 {[%clk 0:00:33.9]}
37... a3 {[%clk 0:01:25.4]} 38. Ncd4 {[%clk 0:00:32.6]} 38... Ra8 {[%clk
0:01:22.4]} 39. Nxf5 {[%clk 0:00:31.9]} 39... Rb3 {[%clk 0:01:20.5]} 40. Rc6
{[%clk 0:00:30.6]} 40... Ne6 {[%clk 0:01:05.3]} 41. Kh2 {[%clk 0:00:29.4]} 41...
h5 {[%clk 0:01:04.3]} 42. Ra2 {[%clk 0:00:27.1]} 42... Ra4 {[%clk 0:00:51]} 43.
Rcc2 {[%clk 0:00:17.6]} 43... d4 {[%clk 0:00:48.2]} 44. Rd2 {[%clk 0:00:18]}
44... d3 {[%clk 0:00:48.7]} 45. Ne1 {[%clk 0:00:12.3]} 45... Nc5 {[%clk
0:00:48.1]} 46. Ne3 {[%clk 0:00:07.6]} 46... Re4 {[%clk 0:00:46.5]} 47. Nxd3
{[%clk 0:00:06.9]} 47... Nxd3 {[%clk 0:00:44.2]} 48. Nc2 {[%clk 0:00:07.1]}
48... Ra4 {[%clk 0:00:43.2]} 49. Re2 {[%clk 0:00:05.4]} 49... Nf4 {[%clk
0:00:31.4]} 50. Re3 {[%clk 0:00:04.9]} 50... Rb2 {[%clk 0:00:31]} 51. Raxa3
{[%clk 0:00:04.5]} 51... Rxa3 {[%clk 0:00:30.7]} 52. Nxa3 {[%clk 0:00:05.4]}
52... Rxg2+ {[%clk 0:00:30.3]} 53. Kh1 {[%clk 0:00:06]} 53... Ra2 {[%clk
0:00:27.8]} 54. Rf3 {[%clk 0:00:06]} 54... Ra1+ {[%clk 0:00:24.1]} 55. Kh2
{[%clk 0:00:05.9]} 55... Ra2+ {[%clk 0:00:25]} 56. Kh1 {[%clk 0:00:06.2]} 56...
Ne2 {[%clk 0:00:25.6]} 57. Nc4 {[%clk 0:00:05.9]} 57... h4 {[%clk 0:00:26.4]}
58. Ne5 {[%clk 0:00:06.2]} 58... f5 {[%clk 0:00:25]} 59. Ng6 {[%clk 0:00:05.4]}
59... Ra1+ {[%clk 0:00:23.2]} 60. Kg2 {[%clk 0:00:05.6]} 60... Ra2 {[%clk
0:00:16.2]} 61. Rf2 {[%clk 0:00:04.6]} 61... Kf7 {[%clk 0:00:14]} 62. Nxh4
{[%clk 0:00:04.8]} 62... Nf4+ {[%clk 0:00:13.8]} 63. Kf3 {[%clk 0:00:04.9]}
63... Ra4 {[%clk 0:00:12]} 64. Nxf5 {[%clk 0:00:04.6]} 64... Nxh3 {[%clk
0:00:12.6]} 65. Rh2 {[%clk 0:00:04.4]} 65... Ng5+ {[%clk 0:00:12.3]} 66. Kg3
{[%clk 0:00:04.9]} 66... Kf6 {[%clk 0:00:13]} 67. Ne3 {[%clk 0:00:05]} 67... Ra3
{[%clk 0:00:13.3]} 68. Kf2 {[%clk 0:00:02.7]} 68... Ra2+ {[%clk 0:00:11.7]} 69.
Kg3 {[%clk 0:00:03]} 69... Ra3 {[%clk 0:00:12.6]} 70. Kf2 {[%clk 0:00:03.1]}
70... Ne6 {[%clk 0:00:13.2]} 71. Rh6+ {[%clk 0:00:03.1]} 71... Kf7 {[%clk
0:00:13.8]} 72. Rh5 {[%clk 0:00:02.7]} 72... Ra2+ {[%clk 0:00:13.6]} 73. Kf3
{[%clk 0:00:02.9]} 73... Ra3 {[%clk 0:00:14.5]} 74. Rf5+ {[%clk 0:00:03.2]}
74... Kg6 {[%clk 0:00:14.9]} 75. Re5 {[%clk 0:00:04.1]} 75... Kf6 {[%clk
0:00:15.3]} 76. Rf5+ {[%clk 0:00:04]} 76... Ke7 {[%clk 0:00:15.5]} 77. Re5
{[%clk 0:00:04.9]} 77... Kd6 {[%clk 0:00:16.1]} 78. Re4 {[%clk 0:00:04.8]} 78...
Ng5+ {[%clk 0:00:16.4]} 79. Kf4 {[%clk 0:00:05.7]} 79... Ne6+ {[%clk 0:00:12.6]}
80. Kf5 {[%clk 0:00:04.5]} 80... Ng7+ {[%clk 0:00:13.1]} 81. Kg6 {[%clk
0:00:04.7]} 81... Ra7 {[%clk 0:00:13.6]} 82. Nf5+ {[%clk 0:00:04.8]} 82... Nxf5
{[%clk 0:00:13.8]} 83. Kxf5 {[%clk 0:00:05.7]} 83... Rf7+ {[%clk 0:00:13.8]} 84.
Kg4 {[%clk 0:00:06.1]} 84... Rf1 {[%clk 0:00:14.7]} 85. Rf4 {[%clk 0:00:06.6]}
85... Rg1+ {[%clk 0:00:15]} 86. Kf3 {[%clk 0:00:07.2]} 86... Kd5 {[%clk
0:00:14.7]} 87. Kf2 {[%clk 0:00:07.1]} 87... Ra1 {[%clk 0:00:14.6]} 88. Rf3
{[%clk 0:00:08]} 88... Kd4 {[%clk 0:00:14.7]} 89. Kg3 {[%clk 0:00:08.7]} 89...
Ke4 {[%clk 0:00:15.1]} 90. Rf4+ {[%clk 0:00:09.1]} 90... Ke5 {[%clk 0:00:15.8]}
91. Rf3 {[%clk 0:00:09.7]} 91... Ra2 {[%clk 0:00:16.4]} 92. Rf2 {[%clk
0:00:09.9]} 92... Rxf2 {[%clk 0:00:15.9]} 93. Kxf2 {[%clk 0:00:10.3]} 1/2-1/2

[Event "Late-Titled-Tuesday-Blitz-January-23-2024"]
[Site "Chess.com"]
[Date "2024.01.23"]
[Round "3"]
[White "ferdipy"]
[Black "sina101"]
[Result "1-0"]
[WhiteElo "2312"]
[BlackElo "2511"]
[TimeControl "180+1"]
[EndTime "14:30:28 PST"]
[Termination "ferdipy won by checkmate"]

1. e4 {[%clk 0:02:57.8]} 1... c5 {[%clk 0:02:59.9]} 2. d4 {[%clk 0:02:55.4]}
2... cxd4 {[%clk 0:02:59.9]} 3. c3 {[%clk 0:02:54.8]} 3... dxc3 {[%clk
0:03:00.8]} 4. Nxc3 {[%clk 0:02:54.1]} 4... Nc6 {[%clk 0:03:01.1]} 5. Bc4 {[%clk
0:02:53.1]} 5... e6 {[%clk 0:03:01]} 6. Nf3 {[%clk 0:02:53]} 6... Nf6 {[%clk
0:03:00.6]} 7. Qe2 {[%clk 0:02:52.2]} 7... Qc7 {[%clk 0:03:00.1]} 8. O-O {[%clk
0:02:52.3]} 8... d6 {[%clk 0:02:56.7]} 9. Be3 {[%clk 0:02:49.8]} 9... Be7 {[%clk
0:02:53.1]} 10. Rac1 {[%clk 0:02:49]} 10... O-O {[%clk 0:02:45.3]} 11. Rfd1
{[%clk 0:02:47.6]} 11... a6 {[%clk 0:02:40.4]} 12. Bb3 {[%clk 0:02:46.1]} 12...
Qa5 {[%clk 0:02:31.3]} 13. Na4 {[%clk 0:02:39.9]} 13... Nd7 {[%clk 0:02:16.9]}
14. h3 {[%clk 0:02:33.6]} 14... Qh5 {[%clk 0:02:03.9]} 15. Nc3 {[%clk
0:02:19.6]} 15... Nce5 {[%clk 0:01:57.7]} 16. Nxe5 {[%clk 0:02:15.4]} 16... Qxe2
{[%clk 0:01:56.2]} 17. Nxe2 {[%clk 0:02:16.3]} 17... Nxe5 {[%clk 0:01:50.6]} 18.
Rc7 {[%clk 0:02:14.8]} 18... Bd8 {[%clk 0:01:46]} 19. Rcc1 {[%clk 0:02:12.2]}
19... Be7 {[%clk 0:01:43.3]} 20. Rc7 {[%clk 0:02:10.2]} 20... Ng6 {[%clk
0:01:30]} 21. g3 {[%clk 0:01:50.3]} 21... Rd8 {[%clk 0:01:23.4]} 22. h4 {[%clk
0:01:47.3]} 22... h5 {[%clk 0:01:20]} 23. f4 {[%clk 0:01:41.1]} 23... Kf8 {[%clk
0:01:18.4]} 24. f5 {[%clk 0:01:35.1]} 24... exf5 {[%clk 0:01:16.6]} 25. exf5
{[%clk 0:01:36]} 25... Ne5 {[%clk 0:01:09.7]} 26. Rf1 {[%clk 0:01:25.2]} 26...
Ng4 {[%clk 0:01:01.4]} 27. Bg5 {[%clk 0:01:22.3]} 27... Bf6 {[%clk 0:00:55]} 28.
Rxf7+ {[%clk 0:01:18]} 28... Ke8 {[%clk 0:00:52.1]} 29. Bxf6 {[%clk 0:01:13.3]}
29... gxf6 {[%clk 0:00:49.5]} 30. Nd4 {[%clk 0:01:01.5]} 30... d5 {[%clk
0:00:47]} 31. Rh7 {[%clk 0:00:59.6]} 31... Rd7 {[%clk 0:00:24.2]} 32. Rxh5
{[%clk 0:00:47.8]} 32... Re7 {[%clk 0:00:20.5]} 33. Rh8+ {[%clk 0:00:42.4]}
33... Kd7 {[%clk 0:00:19.9]} 34. Bxd5 {[%clk 0:00:42.1]} 34... Kd6 {[%clk
0:00:15.3]} 35. Be6 {[%clk 0:00:38.6]} 35... Bxe6 {[%clk 0:00:14.5]} 36. Rxa8
{[%clk 0:00:38.7]} 36... Bd5 {[%clk 0:00:15]} 37. Rd8+ {[%clk 0:00:34.4]} 37...
Kc5 {[%clk 0:00:14.1]} 38. Ne6+ {[%clk 0:00:28.9]} 38... Bxe6 {[%clk 0:00:13.6]}
39. fxe6 {[%clk 0:00:29.8]} 39... Rxe6 {[%clk 0:00:13.9]} 40. Rc1+ {[%clk
0:00:30.2]} 40... Kb6 {[%clk 0:00:13.7]} 41. Rd4 {[%clk 0:00:24.8]} 41... Ne5
{[%clk 0:00:13.7]} 42. Kf2 {[%clk 0:00:22.6]} 42... a5 {[%clk 0:00:12.5]} 43.
Rcd1 {[%clk 0:00:22]} 43... Kc7 {[%clk 0:00:10.4]} 44. Rc1+ {[%clk 0:00:21.2]}
44... Kb6 {[%clk 0:00:10.6]} 45. Rcd1 {[%clk 0:00:17.4]} 45... Kc7 {[%clk
0:00:10.5]} 46. R1d2 {[%clk 0:00:16.2]} 46... Nc6 {[%clk 0:00:08.1]} 47. Rd7+
{[%clk 0:00:15.9]} 47... Kb6 {[%clk 0:00:08.5]} 48. R7d6 {[%clk 0:00:16.4]}
48... Re4 {[%clk 0:00:06.9]} 49. Rxf6 {[%clk 0:00:16.4]} 49... a4 {[%clk
0:00:07.2]} 50. Rf4 {[%clk 0:00:16.4]} 50... Re5 {[%clk 0:00:05.1]} 51. Rxa4
{[%clk 0:00:16.6]} 51... Kb5 {[%clk 0:00:05.6]} 52. Rf4 {[%clk 0:00:16.6]} 52...
Ne7 {[%clk 0:00:04.7]} 53. a4+ {[%clk 0:00:16.5]} 53... Ka6 {[%clk 0:00:04.4]}
54. b4 {[%clk 0:00:16.8]} 54... Nd5 {[%clk 0:00:03.3]} 55. b5+ {[%clk
0:00:15.5]} 55... Ka5 {[%clk 0:00:03.6]} 56. Rfd4 {[%clk 0:00:14.7]} 56... Nc3
{[%clk 0:00:03.7]} 57. R2d3 {[%clk 0:00:11.9]} 57... Ne4+ {[%clk 0:00:03.7]} 58.
Kf3 {[%clk 0:00:11.3]} 58... Nf6 {[%clk 0:00:03.4]} 59. Re3 {[%clk 0:00:11.3]}
59... Rf5+ {[%clk 0:00:03.5]} 60. Rf4 {[%clk 0:00:11.7]} 60... Rc5 {[%clk
0:00:02.9]} 61. Rxf6 {[%clk 0:00:11.6]} 61... Rc1 {[%clk 0:00:03.7]} 62. Rf4
{[%clk 0:00:11.5]} 62... Rf1+ {[%clk 0:00:03.5]} 63. Kg4 {[%clk 0:00:12]} 63...
Ra1 {[%clk 0:00:04.4]} 64. h5 {[%clk 0:00:12.2]} 64... Rc1 {[%clk 0:00:05]} 65.
h6 {[%clk 0:00:12.4]} 65... Rh1 {[%clk 0:00:05.5]} 66. Kg5 {[%clk 0:00:12]}
66... b6 {[%clk 0:00:06]} 67. Rh4 {[%clk 0:00:09.8]} 67... Rf1 {[%clk
0:00:04.8]} 68. Rh2 {[%clk 0:00:09.3]} 68... Re1 {[%clk 0:00:02.8]} 69. Rxe1
{[%clk 0:00:08.8]} 69... Kb4 {[%clk 0:00:02.8]} 70. Rb2+ {[%clk 0:00:09]} 70...
Ka5 {[%clk 0:00:03.7]} 71. Rb4 {[%clk 0:00:07.7]} 71... Kxb4 {[%clk 0:00:03.6]}
72. a5 {[%clk 0:00:08]} 72... Kxa5 {[%clk 0:00:04.5]} 73. h7 {[%clk 0:00:07.7]}
73... Kb4 {[%clk 0:00:04.8]} 74. h8=Q {[%clk 0:00:08.6]} 74... Ka5 {[%clk
0:00:05.5]} 75. Qc3+ {[%clk 0:00:08.5]} 75... Kxb5 {[%clk 0:00:06.4]} 76. Re5+
{[%clk 0:00:08.8]} 76... Ka6 {[%clk 0:00:07.3]} 77. Qa3+ {[%clk 0:00:09]} 77...
Kb7 {[%clk 0:00:07.8]} 78. Re7+ {[%clk 0:00:09.5]} 78... Kc6 {[%clk 0:00:08.1]}
79. Qc3+ {[%clk 0:00:09.3]} 79... Kb5 {[%clk 0:00:07.5]} 80. Re5+ {[%clk
0:00:09.5]} 80... Ka6 {[%clk 0:00:08.4]} 81. Qc4+ {[%clk 0:00:09.3]} 81... Kb7
{[%clk 0:00:09.3]} 82. Qb5 {[%clk 0:00:08.9]} 82... Kc7 {[%clk 0:00:09.3]} 83.
Re7+ {[%clk 0:00:09.2]} 83... Kd6 {[%clk 0:00:10.2]} 84. Rd7+ {[%clk 0:00:09]}
84... Ke6 {[%clk 0:00:09.5]} 85. Qd5# {[%clk 0:00:09.5]} 1-0